bitfinex/quotes_ETHUSD_20210701
["timestamp","ask_amount","ask_price","bid_price","bid_amount"]
[1625123979593,3.53984908,2155.0,2154.9,0.01097244]
[1625123980941,2.8,2155.0,2154.9,0.01097244]
[1625123981045,4.1,2155.4,2155.0,14.3]
[1625123981143,6.95673,2155.5,2155.0,14.3]
[1625123981243,10.4683,2155.7,2155.0,14.3]
[1625123981345,3.4785,2156.4,2155.2,5.01]
[1625123981442,10.6053,2156.5,2155.2,5.01]
[1625123981541,4.1,2156.1,2155.3,7.31535585]
[1625123982040,6.95519,2155.9,2155.3,7.31535585]
[1625123982144,10.4653,2156.5,2155.5,5.01]
[1625123982243,10.4653,2156.5,2155.6,6.42571217]
[1625123982344,10.4653,2156.5,2155.3,6.21097386]
[1625123982443,13.7306,2156.5,2155.3,6.21097386]
[1625123982541,0.12,2156.4,2155.3,6.21097386]
[1625123982694,0.12,2156.4,2155.2,5.01]
[1625123982788,0.12,2156.4,2155.3,6.19111379]
[1625123982892,3.2653,2156.5,2155.3,6.19111379]
[1625123983091,3.2653,2156.5,2155.2,5.01]
[1625123983092,6.95529,2155.9,2155.2,5.01]
[1625123983692,6.95529,2155.9,2155.0,14.3]
[1625123983795,6.93892513,2155.9,2155.0,14.3]
[1625123984091,14.93892513,2155.9,2155.0,14.3]
[1625123984193,6.9569,2155.5,2155.0,14.3]
[1625123984954,6.9569,2155.5,2155.1,6.28386926]
[1625123985036,6.9569,2155.5,2155.3,5.01]
[1625123985137,9.27586,2155.6,2155.3,5.01]
[1625123985242,9.27383,2156.1,2155.4,6.97579392]
[1625123985243,6.9553,2155.8,2155.4,6.97579392]
[1625123985342,6.9553,2155.8,2155.6,2.5628]
[1625123985443,6.9553,2155.8,2155.7,19.44849886]
[1625123985542,6.9553,2155.8,2155.7,12.8]
[1625123985642,9.27383,2156.1,2155.7,24.22553304]
[1625123985742,11.59378,2156.6,2155.7,24.22553304]
[1625123985844,11.59378,2156.6,2155.9,5.01]
[1625123985941,11.59378,2156.6,2156.0,10.83169755]
[1625123986043,11.59378,2156.6,2156.0,8.45881764]
[1625123986142,3.4767245,2157.4,2156.2,5.01]
[1625123986240,3.4767245,2157.4,2156.2,9.6518]
[1625123986346,6.95211,2156.8,2156.3,10.23241177]
[1625123986448,11.59003,2157.3,2156.3,11.62557696]
[1625123986548,0.01164188,2157.6,2156.5,5.01]
[1625123986644,0.01164188,2157.6,2156.6,8.72657655]
[1625123986749,11.58671,2157.9,2156.6,8.72657655]
[1625123986750,11.58671,2157.9,2156.6,8.44826726]
[1625123986844,11.58671,2157.9,2156.7,0.14]
[1625123986944,11.58671,2157.9,2156.7,3.6369]
[1625123987199,11.58671,2157.9,2156.8,6.92836409]
[1625123987201,11.58671,2157.9,2156.8,7.53826146]
[1625123987297,10.1952,2158.2,2156.8,7.53826146]
[1625123987498,10.1952,2158.2,2157.0,5.01]
[1625123987597,3.47473,2158.7,2157.0,5.01]
[1625123987700,3.47473,2158.7,2157.1,6.55705101]
[1625123987896,3.47473,2158.7,2157.1,0.10290248]
[1625123987897,14.27493,2158.7,2157.1,0.10290248]
[1625123988003,14.27493,2158.7,2157.1,6.45812002]
[1625123988100,14.27493,2158.7,2157.1,7.14567911]
[1625123988198,14.27493,2158.7,2157.1,7.82144346]
[1625123988401,6.9485,2158.0,2157.1,7.82144346]
[1625123988600,11.58362,2158.5,2157.1,7.82144346]
[1625123989117,11.58362,2158.5,2157.0,2.774]
[1625123989209,11.58362,2158.5,2157.0,0.14]
[1625123989490,6.94919,2157.9,2157.0,0.14]
[1625123989585,10.87619,2157.9,2157.0,0.14]
[1625123990182,10.87619,2157.9,2156.6,16.16677299]
[1625123991712,10.87619,2157.9,2156.6,16.29286918]
[1625123991812,0.17899234,2157.8,2156.6,16.29286918]
[1625123991912,6.94919,2157.9,2156.6,16.29286918]
[1625123994457,6.94919,2157.9,2156.6,20.59446918]
[1625123995406,6.94919,2157.9,2156.6,14.1777]
[1625123995504,6.94919,2157.9,2156.6,9.8761]
[1625123995607,6.94919,2157.9,2156.8,5.01]
[1625123995709,6.94919,2157.9,2156.9,7.00547241]
[1625123995806,6.94919,2157.9,2156.9,7.05286176]
[1625123995907,6.94919,2157.9,2157.1,5.01]
[1625123996208,6.94919,2157.9,2156.8,5.01]
[1625123996297,6.94919,2157.9,2156.9,5.01]
[1625123996401,6.94919,2157.9,2156.9,6.27288613]
[1625123996498,6.94919,2157.9,2157.1,5.01]
[1625123996803,6.94919,2157.9,2156.8,5.01]
[1625123996904,6.94919,2157.9,2156.9,5.01]
[1625123997004,6.94919,2157.9,2157.0,6.66981954]
[1625123997104,6.94919,2157.9,2157.2,5.01]
[1625123997407,6.94919,2157.9,2157.3,6.86780743]
[1625123997605,6.94919,2157.9,2156.9,8.34338302]
[1625123997706,6.94919,2157.9,2157.1,5.01]
[1625123998008,6.94919,2157.9,2157.2,6.59200392]
[1625123998214,6.94919,2157.9,2156.9,6.97393784]
[1625123998448,6.94919,2157.9,2157.2,7.69238119]
[1625123998651,6.94919,2157.9,2157.0,5.01]
[1625123998751,6.94919,2157.9,2157.1,7.60284045]
[1625123998955,6.94919,2157.9,2157.3,5.01]
[1625123999152,6.94919,2157.9,2157.4,6.33074966]
[1625123999253,6.94919,2157.9,2157.4,10.23454966]
[1625123999353,9.26601,2158.0,2157.6,5.01]
[1625123999453,11.0,2158.4,2157.7,7.40579144]
[1625124000149,6.94764,2158.1,2157.7,7.40579144]
[1625124000452,6.94764,2158.1,2157.6,5.01]
[1625124000551,6.94764,2158.1,2157.2,5.01]
[1625124000705,6.94764,2158.1,2157.3,6.98486953]
[1625124000798,6.94764,2158.1,2157.5,5.01]
[1625124000999,6.94764,2158.1,2157.6,6.72275501]
[1625124001097,6.94764,2158.1,2157.2,5.01]
[1625124001204,6.94764,2158.1,2157.6,7.40045708]
[1625124001301,6.94764,2158.1,2157.3,7.71238408]
[1625124001403,6.94764,2158.1,2156.9,9.05696211]
[1625124001498,6.94764,2158.1,2157.6,6.25237415]
[1625124001598,6.94764,2158.1,2157.1,5.01]
[1625124001702,6.94764,2158.1,2157.2,7.14931835]
[1625124001899,6.94764,2158.1,2157.4,5.01]
[1625124002003,6.94764,2158.1,2157.5,7.6563179]
[1625124002099,6.94764,2158.1,2157.7,5.01]
[1625124002210,6.94764,2158.1,2157.3,6.84678382]
[1625124002300,6.94764,2158.1,2157.8,7.17282005]
[1625124002401,6.94764,2158.1,2157.7,3.812]
[1625124002602,6.94704,2158.3,2157.8,8.62273209]
[1625124002702,11.0,2158.4,2157.9,5.01]
[1625124002951,11.0,2158.4,2158.0,7.67777709]
[1625124003250,11.0,2158.4,2158.2,5.01]
[1625124003349,11.0,2158.4,2158.2,9.7575]
[1625124003452,11.0,2158.4,2158.3,29.78999978]
[1625124004050,11.0,2158.4,2158.3,21.8]
[1625124004852,11.0,2158.4,2158.2,5.01]
[1625124004950,11.0,2158.4,2158.2,6.25745516]
[1625124005052,11.0,2158.4,2158.3,6.39261238]
[1625124005222,11.0,2158.4,2157.8,7.24828791]
[1625124005408,11.0,2158.4,2157.7,1.34029487]
[1625124005610,11.0,2158.4,2157.8,6.37494905]
[1625124005711,11.0,2158.4,2157.7,1.34029487]
[1625124006010,11.0,2158.4,2157.8,6.46007147]
[1625124006107,11.0,2158.4,2157.7,1.34029487]
[1625124006318,11.0,2158.4,2157.8,6.44360135]
[1625124006809,11.0,2158.4,2157.9,0.1]
[1625124007011,11.0,2158.4,2157.7,1.34029487]
[1625124007953,11.0,2158.4,2157.4,0.14]
[1625124008557,11.0,2158.4,2157.5,4.41150521]
[1625124008654,11.0,2158.4,2157.6,5.54233532]
[1625124008752,11.0,2158.4,2157.3,4.41150521]
[1625124008862,11.0,2158.4,2157.5,0.89674413]
[1625124008959,11.0,2158.4,2157.6,9.18606937]
[1625124009158,11.0,2158.4,2157.6,17.18606937]
[1625124009452,11.0,2158.4,2157.6,9.18606937]
[1625124009555,11.0,2158.4,2157.6,10.88270316]
[1625124009897,11.0,2158.4,2157.6,18.88270316]
[1625124009998,11.0,2158.4,2157.6,10.88270316]
[1625124010602,11.91540452,2158.4,2157.6,17.18606937]
[1625124010698,11.0,2158.4,2157.6,17.18606937]
[1625124010900,11.0,2158.4,2157.7,0.16]
[1625124011199,11.0,2158.4,2157.6,17.18606937]
[1625124011397,11.0,2158.4,2157.6,9.18606937]
[1625124011501,11.0,2158.4,2157.6,10.78066937]
[1625124011700,11.0,2158.4,2157.8,5.01]
[1625124011799,11.0,2158.4,2157.9,7.75201694]
[1625124012056,11.0,2158.4,2158.1,5.01]
[1625124012157,11.0,2158.4,2158.2,7.81164072]
[1625124012355,11.0,2158.4,2158.3,19.46]
[1625124012471,11.0,2158.4,2158.3,26.71413576]
[1625124012560,11.0,2158.4,2158.3,12.26413576]
[1625124012657,11.0,2158.4,2158.3,5.01]
[1625124012857,11.0,2158.4,2157.9,5.01]
[1625124013057,11.0,2158.4,2158.0,6.98282436]
[1625124013258,11.0,2158.4,2158.2,5.01]
[1625124013360,11.0,2158.4,2158.3,17.53035469]
[1625124013457,11.0,2158.4,2158.3,6.88035469]
[1625124013559,11.0,2158.4,2158.3,5.01]
[1625124013761,11.0,2158.4,2158.3,13.0536527]
[1625124013858,11.0,2158.4,2158.3,18.0636527]
[1625124013959,11.0,2158.4,2158.3,11.5636527]
[1625124014059,11.0,2158.4,2158.3,5.01]
[1625124014201,11.0,2158.4,2158.3,13.58057683]
[1625124014299,11.0,2158.4,2157.8,5.01]
[1625124014401,11.0,2158.4,2157.9,7.63804077]
[1625124014501,11.0,2158.4,2158.3,6.11340097]
[1625124014600,11.0,2158.4,2158.1,5.01]
[1625124014703,11.0,2158.4,2157.8,7.80699778]
[1625124014801,11.0,2158.4,2158.0,5.01]
[1625124014901,11.0,2158.4,2158.1,6.45999197]
[1625124015109,11.0,2158.4,2157.9,5.01]
[1625124015203,11.0,2158.4,2157.6,7.17183923]
[1625124015303,11.0,2158.4,2157.4,6.37265437]
[1625124015408,14.9312,2158.4,2157.4,6.37265437]
[1625124015601,21.87804,2158.4,2157.4,6.37265437]
[1625124017104,21.87804,2158.4,2157.4,5.01]
[1625124017305,21.87804,2158.4,2157.3,6.3457053]
[1625124017806,21.87804,2158.4,2157.1,13.48164477]
[1625124017907,21.87804,2158.4,2157.1,6.53411477]
[1625124018504,22.9312,2158.4,2157.3,5.01]
[1625124018608,22.9312,2158.4,2157.2,5.01]
[1625124018809,6.94842,2157.9,2157.2,5.01]
[1625124018906,11.82412,2157.9,2157.2,5.01]
[1625124019110,11.82412,2157.9,2157.3,6.39975298]
[1625124019211,11.82412,2157.9,2156.9,5.01]
[1625124019312,11.82412,2157.9,2157.0,7.14043941]
[1625124019518,11.82412,2157.9,2157.2,5.01]
[1625124019611,4.8757,2157.9,2157.2,5.01]
[1625124019811,4.8697,2157.9,2157.1,5.01]
[1625124019911,4.8697,2157.9,2156.9,5.01]
[1625124020109,4.8697,2157.9,2157.0,6.44313857]
[1625124020211,4.8697,2157.9,2156.8,5.01]
[1625124020310,4.8697,2157.9,2156.9,6.90449446]
[1625124020311,11.81812,2157.9,2156.9,6.90449446]
[1625124020676,11.81812,2157.9,2157.1,5.01]
[1625124020775,11.81812,2157.9,2157.2,6.33799003]
[1625124020975,11.81812,2157.9,2157.1,6.63546754]
[1625124021071,11.81812,2157.9,2157.1,6.61110051]
[1625124021176,11.81812,2157.9,2156.8,5.01]
[1625124021273,11.81812,2157.9,2157.0,6.49342817]
[1625124021370,11.81812,2157.9,2157.2,5.01]
[1625124021570,11.81812,2157.9,2156.8,5.01]
[1625124021672,11.81812,2157.9,2156.9,5.01]
[1625124021770,11.81812,2157.9,2156.9,6.5254443]
[1625124021872,11.81812,2157.9,2157.1,5.01]
[1625124021971,11.81812,2157.9,2157.2,6.76896485]
[1625124022172,11.81812,2157.9,2157.0,5.01]
[1625124022471,11.81812,2157.9,2157.1,6.60550899]
[1625124022573,11.81812,2157.9,2157.3,5.01]
[1625124022673,11.81812,2157.9,2157.4,6.18848269]
[1625124022772,11.81812,2157.9,2157.4,6.83302718]
[1625124023203,4.8697,2157.9,2157.4,6.83302718]
[1625124023302,1.2663,2158.0,2157.4,6.83302718]
[1625124023404,14.9312,2158.4,2157.4,6.83302718]
[1625124023606,14.9312,2158.4,2157.6,5.01]
[1625124023806,14.9312,2158.4,2157.7,6.62008625]
[1625124023903,14.9312,2158.4,2157.3,7.49640416]
[1625124024102,14.9312,2158.4,2157.5,5.01]
[1625124024205,14.9312,2158.4,2157.1,5.01]
[1625124024309,6.94895,2157.8,2157.1,5.01]
[1625124024404,6.94895,2157.8,2157.2,5.01]
[1625124024607,6.94895,2157.8,2157.1,5.01]
[1625124024713,6.94895,2157.8,2157.2,5.01]
[1625124024909,6.94895,2157.8,2157.3,6.40528387]
[1625124025107,6.94895,2157.8,2157.5,5.01]
[1625124025462,6.94895,2157.8,2157.2,5.01]
[1625124025754,6.94895,2157.8,2157.3,6.26037129]
[1625124025854,6.94895,2157.8,2157.3,6.48938038]
[1625124026255,6.94895,2157.8,2157.1,5.01]
[1625124026358,6.94895,2157.8,2157.2,6.45903254]
[1625124026760,6.94895,2157.8,2157.1,5.01]
[1625124026859,6.94895,2157.8,2157.2,5.01]
[1625124026957,6.94895,2157.8,2157.1,5.01]
[1625124027695,6.94895,2157.8,2157.1,4.99138075]
[1625124030757,6.94895,2157.8,2157.2,6.51642174]
[1625124030852,6.94895,2157.8,2157.2,6.48407773]
[1625124030952,6.94895,2157.8,2157.4,5.01]
[1625124031356,6.94895,2157.8,2157.1,5.01]
[1625124031456,6.94895,2157.8,2157.2,5.01]
[1625124031658,6.94895,2157.8,2157.3,0.08]
[1625124031856,6.94895,2157.8,2157.2,5.01]
[1625124032204,6.94895,2157.8,2157.1,5.01]
[1625124032403,6.94895,2157.8,2157.2,5.01]
[1625124032603,6.94895,2157.8,2157.1,5.01]
[1625124032904,6.94895,2157.8,2157.2,6.45378346]
[1625124033003,6.94895,2157.8,2157.2,6.4847328]
[1625124033108,6.94895,2157.8,2157.1,5.01]
[1625124033304,6.94895,2157.8,2157.2,6.32995364]
[1625124033611,6.94895,2157.8,2157.4,5.01]
[1625124033807,6.94895,2157.8,2157.5,6.53132017]
[1625124034012,6.94895,2157.8,2157.2,7.81212111]
[1625124034208,6.94895,2157.8,2157.4,5.01]
[1625124034468,9.26456,2158.1,2157.5,7.27122863]
[1625124034559,6.94799,2158.0,2157.7,5.01]
[1625124034657,11.0,2158.4,2157.8,7.59738383]
[1625124034859,11.0,2158.4,2158.0,5.01]
[1625124034960,11.0,2158.4,2158.1,6.87427875]
[1625124035260,11.0,2158.4,2157.8,5.01]
[1625124035359,11.0,2158.4,2157.9,6.39378139]
[1625124035700,17.94665,2158.4,2157.9,6.39378139]
[1625124035993,17.94665,2158.4,2157.7,5.01]
[1625124036296,17.94665,2158.4,2158.0,3.18432472]
[1625124036399,17.94665,2158.4,2158.1,6.20410448]
[1625124036498,17.94665,2158.4,2158.0,3.18432472]
[1625124036802,17.94665,2158.4,2158.1,6.07742103]
[1625124036902,17.94665,2158.4,2158.0,3.18432472]
[1625124041347,17.94665,2158.4,2158.1,6.41322168]
[1625124041428,17.94665,2158.4,2158.0,3.18432472]
[1625124041721,3.4737302,2158.3,2158.0,3.18432472]
[1625124042954,6.94745,2158.2,2158.0,3.18432472]
[1625124047262,6.94745,2158.2,2158.1,26.75086378]
[1625124047363,12.7369902,2158.3,2158.1,26.75086378]
[1625124047462,9.26326,2158.3,2158.1,26.75086378]
[1625124047561,11.0,2158.4,2158.2,42.2013309]
[1625124047562,2.79699,2158.4,2158.2,42.2013309]
[1625124047711,6.85,2159.0,2158.3,14.27031929]
[1625124047812,6.85,2159.0,2158.4,0.06]
[1625124047976,6.85,2159.0,2158.6,7.97055478]
[1625124048170,6.85,2159.0,2158.8,5.01]
[1625124048277,6.85,2159.0,2158.7,0.14]
[1625124048371,6.85,2159.0,2158.5,5.01]
[1625124048473,6.85,2159.0,2158.8,0.14]
[1625124049575,13.79443,2159.0,2158.8,0.14]
[1625124049681,13.79443,2159.0,2158.5,0.14]
[1625124049776,26.03553,2159.0,2158.0,3.18432472]
[1625124049927,19.0911,2159.0,2158.0,3.18432472]
[1625124050027,11.0911,2159.0,2158.1,0.14]
[1625124050217,14.83219607,2159.0,2158.1,0.14]
[1625124050737,6.94654,2158.6,2158.1,0.14]
[1625124051531,6.94654,2158.6,2158.1,6.42440665]
[1625124051834,6.94654,2158.6,2158.1,0.14]
[1625124051934,6.94654,2158.6,2158.1,6.34440874]
[1625124052032,6.94654,2158.6,2158.1,0.14]
[1625124052231,6.94654,2158.6,2158.1,6.06839958]
[1625124052334,6.94654,2158.6,2158.1,6.82061177]
[1625124054313,9.26205,2158.7,2158.1,6.82061177]
[1625124054415,6.85,2159.0,2158.2,0.06]
[1625124054611,6.85,2159.0,2158.2,0.2]
[1625124054755,6.85,2159.0,2158.4,6.31517126]
[1625124054856,6.85,2159.0,2158.2,0.2]
[1625124054959,6.85,2159.0,2158.2,0.14]
[1625124055156,3.4730427,2159.2,2158.2,0.14]
[1625124055257,6.94574,2159.0,2158.2,0.14]
[1625124055457,6.94574,2159.0,2158.2,6.6379043]
[1625124055657,6.94574,2159.0,2158.3,0.08]
[1625124055857,6.94574,2159.0,2158.2,6.6379043]
[1625124056158,6.94574,2159.0,2158.4,5.01]
[1625124056262,6.94574,2159.0,2158.5,7.13233332]
[1625124056357,6.94526,2159.2,2158.5,7.13233332]
[1625124056569,2.49388297,2159.6,2158.5,7.13233332]
[1625124057402,6.94551,2159.1,2158.2,0.14]
[1625124057604,10.13791,2159.1,2158.2,0.14]
[1625124057703,6.57661573,2159.0,2158.0,3.18432472]
[1625124057902,0.14,2158.9,2158.0,3.18432472]
[1625124058001,2.6814294,2158.9,2158.0,3.18432472]
[1625124058104,5.01,2158.8,2158.0,3.18432472]
[1625124058301,5.15,2158.8,2158.0,3.18432472]
[1625124058504,6.94789,2158.5,2158.0,3.18432472]
[1625124059109,6.94789,2158.5,2158.1,6.34714329]
[1625124059360,6.89789,2158.5,2158.1,6.34714329]
[1625124059459,12.7377821,2158.9,2158.2,0.06]
[1625124059655,12.7377821,2158.9,2158.0,3.18432472]
[1625124059854,6.9463,2158.6,2158.0,3.18432472]
[1625124059954,6.9463,2158.6,2158.1,6.76617556]
[1625124060155,6.9463,2158.6,2158.1,6.71166327]
[1625124060457,6.9463,2158.6,2158.1,6.35673704]
[1625124061057,6.9463,2158.6,2158.0,3.18432472]
[1625124061159,6.9463,2158.6,2158.2,5.93730842]
[1625124061357,9.26263,2158.7,2158.2,5.93730842]
[1625124061763,9.26263,2158.7,2158.0,3.18432472]
[1625124062968,6.94704,2158.4,2158.0,3.18432472]
[1625124063711,6.94704,2158.4,2158.1,6.30480049]
[1625124063768,6.94704,2158.4,2158.0,3.18432472]
[1625124064268,6.94704,2158.4,2158.1,6.77687535]
[1625124064469,6.94704,2158.4,2158.0,3.18432472]
[1625124065071,6.94704,2158.4,2158.1,6.29308299]
[1625124065170,6.94704,2158.4,2158.1,6.31960272]
[1625124065275,9.26263,2158.7,2158.1,6.31960272]
[1625124065474,9.26263,2158.7,2158.1,6.3522109]
[1625124065814,6.94661,2158.5,2158.1,6.3522109]
[1625124066058,6.94661,2158.5,2158.0,3.18432472]
[1625124066559,6.94661,2158.5,2158.1,6.82671288]
[1625124066661,6.94616,2158.8,2158.1,6.43598961]
[1625124066761,12.7377821,2158.9,2158.1,6.43598961]
[1625124066863,12.7377821,2158.9,2158.1,6.83607331]
[1625124067262,9.26397,2158.9,2158.1,6.83607331]
[1625124067361,6.85,2159.1,2158.1,6.83607331]
[1625124067563,6.85,2159.1,2158.2,0.06]
[1625124067762,6.94567,2158.9,2158.2,0.06]
[1625124067864,6.94567,2158.9,2158.1,6.83607331]
[1625124067965,6.94567,2158.9,2158.0,15.13959472]
[1625124068062,6.94567,2158.9,2158.1,6.42204659]
[1625124068407,6.94567,2158.9,2158.0,3.18432472]
[1625124068808,6.94567,2158.9,2158.1,6.85655123]
[1625124069116,6.94567,2158.9,2158.2,5.01]
[1625124069209,6.94567,2158.9,2158.1,6.11779803]
[1625124069312,6.94567,2158.9,2158.1,6.09222874]
[1625124069411,6.94567,2158.9,2158.0,3.18432472]
[1625124069808,6.94567,2158.9,2158.1,6.13902621]
[1625124069909,6.94567,2158.9,2158.0,3.18432472]
[1625124070463,6.94567,2158.9,2158.1,6.38853034]
[1625124070564,6.94567,2158.9,2158.0,3.18432472]
[1625124070766,5.01,2158.7,2158.0,3.18432472]
[1625124070865,0.08,2158.8,2158.1,7.56193047]
[1625124071064,12.7345363,2159.0,2158.1,7.56193047]
[1625124071866,6.94718,2158.5,2158.1,7.56193047]
[1625124072070,12.7345363,2159.0,2158.1,7.56193047]
[1625124072912,6.94611,2158.7,2158.1,7.56193047]
[1625124073613,6.94611,2158.7,2158.2,0.08]
[1625124073714,6.94611,2158.7,2158.3,0.23655]
[1625124073813,12.7345363,2159.0,2158.3,0.23655]
[1625124073913,6.85,2159.1,2158.3,0.23655]
[1625124074013,13.79492,2159.1,2158.3,0.23655]
[1625124074516,13.79492,2159.1,2158.9,3.18432472]
[1625124074615,13.79492,2159.1,2158.9,2.472e-05]
[1625124074715,2.74448162,2158.8,2158.3,0.23655]
[1625124074956,2.74448162,2158.8,2158.4,0.06]
[1625124075258,2.74448162,2158.8,2158.3,0.23655]
[1625124075358,2.74448162,2158.8,2158.3,5.24655]
[1625124075458,2.74448162,2158.8,2158.4,6.58475374]
[1625124075961,2.74448162,2158.8,2158.3,0.23655]
[1625124076062,7.32408162,2158.8,2158.3,0.23655]
[1625124076163,7.32408162,2158.8,2158.3,5.24655]
[1625124076263,14.26983162,2158.8,2158.4,6.9763561]
[1625124076666,7.32408162,2158.8,2158.4,6.9763561]
[1625124076966,7.32408162,2158.8,2158.5,0.08]
[1625124077066,2.74448162,2158.8,2158.5,0.08]
[1625124077314,2.74448162,2158.8,2158.4,6.9763561]
[1625124078011,6.85,2159.1,2158.5,27.65]
[1625124078115,6.85,2159.1,2158.6,13.7055829]
[1625124078213,9.3914294,2159.7,2158.7,5.01]
[1625124078314,9.3914294,2159.7,2158.8,8.055874]
[1625124078468,9.3914294,2159.7,2158.7,0.14]
[1625124079269,6.94389,2159.4,2158.8,5.01]
[1625124079377,9.3914294,2159.7,2158.9,11.47505414]
[1625124079378,6.85,2159.7,2158.9,11.47505414]
[1625124079471,6.85,2159.7,2158.9,11.61505414]
[1625124079570,6.85,2159.7,2159.1,5.01]
[1625124079666,6.85,2159.7,2159.2,7.33506838]
[1625124079766,6.85,2159.7,2159.2,7.41553321]
[1625124080167,11.57529,2160.1,2159.2,7.41553321]
[1625124080569,6.94311,2159.7,2159.1,0.9482]
[1625124080669,6.94311,2159.7,2159.0,0.14]
[1625124081113,6.94311,2159.7,2159.0,3.4717]
[1625124081214,15.16199,2160.1,2159.0,3.4717]
[1625124081310,15.16199,2160.1,2159.1,6.70244281]
[1625124081512,23.16199,2160.1,2159.1,6.70244281]
[1625124081613,5.01,2159.9,2159.1,6.94347]
[1625124081792,5.01,2159.9,2159.1,13.22801637]
[1625124081890,5.01,2159.9,2159.1,6.94347]
[1625124082188,5.01,2159.9,2159.2,6.35365949]
[1625124082289,5.01,2159.9,2159.2,6.36372496]
[1625124082494,5.01,2159.9,2159.1,6.94347]
[1625124082789,5.01,2159.9,2159.1,13.15971294]
[1625124083493,6.94355,2160.0,2159.1,13.15971294]
[1625124083592,6.94355,2160.0,2159.1,6.94347]
[1625124083892,9.3746373,2160.0,2159.1,6.94347]
[1625124083993,9.3746373,2160.0,2159.0,9.65496268]
[1625124084095,9.3746373,2160.0,2159.0,3.4717]
[1625124084200,5.01,2159.8,2159.0,3.4717]
[1625124084300,5.01,2159.8,2159.1,6.10095586]
[1625124084897,5.01,2159.8,2159.1,5.90118526]
[1625124085002,5.01,2159.8,2159.1,5.92796958]
[1625124085101,5.01,2159.8,2159.1,5.9732184]
[1625124085398,5.01,2159.8,2159.0,3.4717]
[1625124085500,5.01,2159.8,2159.1,5.93030574]
[1625124085601,5.01,2159.8,2159.1,5.96911115]
[1625124085701,5.01,2159.8,2159.0,3.4717]
[1625124085900,5.01,2159.8,2159.1,13.25613344]
[1625124085999,9.3746073,2160.0,2159.1,6.94319]
[1625124086650,17.3746073,2160.0,2159.1,6.94319]
[1625124086751,5.01,2159.8,2159.0,3.4717]
[1625124086953,11.95422,2159.8,2158.8,9.25796]
[1625124087052,11.95422,2159.8,2158.7,9.25856]
[1625124087053,0.14,2159.7,2158.7,9.25856]
[1625124087147,7.78138927,2159.7,2158.7,9.25856]
[1625124087252,10.21247657,2159.7,2158.7,9.25856]
[1625124087349,5.01,2159.6,2158.5,0.51174123]
[1625124087469,5.01,2159.5,2158.5,0.51174123]
[1625124087847,5.01,2159.5,2158.4,5.14067123]
[1625124088147,11.95513,2159.5,2158.5,6.9452]
[1625124088247,11.95513,2159.5,2158.5,13.48147581]
[1625124088508,3.4724288,2159.4,2158.4,0.51174123]
[1625124088806,3.4724288,2159.4,2158.5,0.12]
[1625124089109,3.4724288,2159.4,2158.5,5.01]
[1625124089210,3.4724288,2159.4,2158.6,6.97855872]
[1625124089678,3.4724288,2159.4,2158.4,8.54417989]
[1625124089760,3.4724288,2159.4,2158.3,12.78779123]
[1625124089761,3.4724288,2159.4,2158.7,6.61054691]
[1625124089860,3.4724288,2159.4,2158.4,9.89913113]
[1625124089960,9.25941,2159.2,2158.4,10.41087236]
[1625124090467,9.25941,2159.2,2158.4,8.82467236]
[1625124090746,9.25941,2159.2,2158.5,0.06]
[1625124091002,9.25941,2159.2,2158.5,5.07]
[1625124091104,9.25941,2159.2,2158.5,5.01]
[1625124091204,9.25941,2159.2,2158.6,6.9695641]
[1625124091911,6.94454,2158.9,2158.6,6.9695641]
[1625124092108,6.94454,2158.9,2158.7,0.04]
[1625124092409,9.25941,2159.2,2158.7,0.04]
[1625124092511,9.25941,2159.2,2158.8,5.01]
[1625124092615,9.25941,2159.2,2158.9,8.33892832]
[1625124092811,9.25941,2159.2,2158.7,0.04]
[1625124092911,9.25941,2159.2,2158.6,7.14545408]
[1625124093554,11.86,2159.7,2158.6,7.14545408]
[1625124093653,6.94429,2159.0,2158.6,7.14545408]
[1625124094804,6.94429,2159.0,2158.8,5.01]
[1625124094906,6.94429,2159.0,2158.9,7.25418256]
[1625124095251,6.94429,2159.0,2158.6,7.18272311]
[1625124095351,6.94429,2159.0,2158.8,5.01]
[1625124095548,6.94429,2159.0,2158.9,6.85277444]
[1625124095650,6.94429,2159.0,2158.7,0.14]
[1625124096050,6.94429,2159.0,2158.6,7.82009897]
[1625124097402,9.25941,2159.2,2158.6,7.82009897]
[1625124097501,6.94429,2159.0,2158.6,7.82009897]
[1625124098038,6.85,2159.7,2158.6,7.82009897]
[1625124098135,6.85,2159.7,2158.8,5.01]
[1625124098238,6.85,2159.7,2158.9,6.8106787]
[1625124098735,3.47229,2159.4,2158.9,6.8106787]
[1625124098838,6.94374,2159.2,2158.9,6.8106787]
[1625124099642,6.94374,2159.2,2158.5,6.23906038]
[1625124099984,6.94374,2159.2,2158.5,6.29906038]
[1625124100586,6.94374,2159.2,2158.5,6.23906038]
[1625124100890,6.94374,2159.2,2158.7,5.01]
[1625124101087,6.94374,2159.2,2158.8,6.70785025]
[1625124102336,6.94374,2159.2,2158.5,0.65174123]
[1625124102532,6.94374,2159.2,2158.5,0.14]
[1625124103035,6.94374,2159.2,2158.6,0.16]
[1625124103583,6.94374,2159.2,2158.6,5.17]
[1625124103684,6.94374,2159.2,2158.7,7.08752166]
[1625124103786,6.94374,2159.2,2158.9,5.01]
[1625124103982,6.94374,2159.2,2159.0,7.08165887]
[1625124104082,6.94374,2159.2,2159.0,0.5]
[1625124104691,27.42324293,2159.1,2159.0,0.5]
[1625124104791,25.3626,2159.1,2159.0,0.5]